Cogmind - Beta 16 @@@ ROGUE MODE // 2026.01.22 @ 17:33:40 Player: applejuice Result: Destroyed by G-34 Mercenary with Small Laser Performance ------------- Evolutions (1) 500 Regions Visited (2) 400 Robots Destroyed (37) 185 Value Destroyed (870) 870 Prototype IDs (0) 0 Alien Tech Used (0) 0 Bonus (0) 0 TOTAL SCORE: 1955 Bonus ------- None Cogmind --------- Core Integrity 0/400 Matter 248/300 Energy 98/100 System Corruption 0% Temperature Cool (6) Movement Core (150) Ox2 Location -9/Materials Parts ------- > --- POWER (1) -------- (None) > --- PROPULSION (3) --- (None) > --- UTILITY (3) ------ Heat Sink Small Storage Unit Signal Interpreter > --- WEAPON (2) ------- Light Assault Rifle Light Assault Rifle > --- INVENTORY (8) ---- Sensor Array Datajack Mining Laser Peak State ------------ > --- POWER ------------ Improved Ion Engine > --- PROPULSION ------- Aluminum Leg Aluminum Leg Aluminum Leg > --- UTILITY ---------- Small Storage Unit Seismic Detector Light Armor Plating > --- WEAPON ----------- Medium Laser Assault Rifle > --- INVENTORY -------- Ion Engine Light Ion Engine Aluminum Leg Aluminum Leg Assault Rifle Light Cannon Datajack [Rating: 10] Favorites ----------- Power Ion Engine Engine Ion Engine Propulsion Aluminum Leg Leg Aluminum Leg Utility Small Storage Unit Device Seismic Detector Storage Small Storage Unit Processor Signal Interpreter Protection Light Armor Plating Weapon Assault Rifle Energy Gun Medium Laser Ballistic Gun Assault Rifle Ballistic Cannon Light Cannon Special Weapon Mining Laser Special Melee Weapon Datajack Build | -11 -10 -9 ------- Run | Yrd Mat Mat Slots Evolved 2 | . . 2 Power . | . . . Propulsion 1 | . . 1 Utility 1 | . . 1 Weapon . | . . . Parts Attached 29 | 7 . 22 Power 3 | 1 . 2 Engine 3 | 1 . 2 Core . | . . . Reactor . | . . . Propulsion 8 | 2 . 6 Treads . | . . . Leg 8 | 2 . 6 Wheel . | . . . Hover . | . . . Flight . | . . . Utility 8 | 2 . 6 Device 3 | 1 . 2 Storage 1 | 1 . . Processor 1 | . . 1 Hackware . | . . . Protection 3 | . . 3 Artifact . | . . . Weapon 10 | 2 . 8 Energy Gun 3 | 1 . 2 Energy Cannon . | . . . Ballistic Gun 4 | 1 . 3 Ballistic Cannon 1 | . . 1 Launcher . | . . . Special Weapon 1 | . . 1 Impact Weapon . | . . . Slashing Weapon . | . . . Piercing Weapon . | . . . Special Melee Weapon 1 | . . 1 Unidentified Prototypes . | . . . Parts Lost 17 | . . 17 Power 3 | . . 3 Propulsion 7 | . . 7 Utility 3 | . . 3 Weapon 4 | . . 4 Highest Loss Streak 11 | . . 11 To Critical Strikes 2 | . . 2 Average Backups 4 | 1 4 5 Power 1 | . 1 1 Propulsion . | . . 1 Utility . | . . . Weapon 1 | . 1 1 Tool/Special . | . . . Unused Backups 1 | . . 1 Power . | . . . Propulsion . | . . . Utility . | . . . Weapon 1 | . . 1 Tool/Special . | . . . Average Slot Usage (%) 96 | . 100 93 Engine 11 | . 14 9 Leg 28 | . 28 29 Device 10 | . 14 7 Storage 12 | . 14 11 Processor 2 | . . 3 Protection 5 | . . 9 Energy Gun 10 | . 14 8 Ballistic Gun 12 | . 14 10 Ballistic Cannon 1 | . . 1 Peak Build Rating 10 | 7 7 10 Average Rating 7 | 5 7 9 On Entrance 4 | . 7 7 Avg Prop Armor Cover (%) . | . . . Naked Turns . | . . . Heaviest Build 20 | 15 15 20 Greatest Support 30 | 20 20 30 Greatest Overweight (x) 4 | 4 . 3 Average Overweight (x) . | . . . Largest Inventory Capacity 8 | 8 8 8 Average Capacity 7 | 7 8 8 Most Carried 8 | 2 8 8 Average Carried 4 | 1 4 5 Final Capacity 8 | 8 8 8 Final Carried 8 | 2 8 3 Class Distribution -------------------- 79% | Mutant 20% | Scavenger-Mutant Dominant Class ---------------- Mutant | -10/Materials Mutant | -9/Materials Resources | -11 -10 -9 ----------- Run | Yrd Mat Mat Matter Collected 746 | 327 48 371 Remotely . | . . . Salvage Created 1152 | 222 234 696 Parts 77 | 17 21 39 Haulers Intercepted . | . . . Recyclers Shooed 1 | 1 . . Parts Field Recycled . | . . . Retrieved Matter . | . . . Parts Self-Destructed . | . . . Prevented . | . . . Parts Restored . | . . . Kills | -11 -10 -9 ------- Run | Yrd Mat Mat Combat Hostiles Destroyed 26 | . 7 19 Guns 24 | . 7 17 Cannons 2 | . . 2 Classes Destroyed 9 | 3 3 3 Worker 2 | 2 . . Builder 1 | . . 1 Tunneler 5 | 5 . . Recycler 1 | 1 . . Watcher 2 | . 1 1 Swarmer 9 | . 3 6 Grunt 10 | . 4 6 Duelist 1 | . . 1 Sentry 6 | . . 6 Best Kill Streak 9 | 8 3 9 Combat Bots Only 4 | . 3 4 Max Kills in Single Turn 1 | 1 1 1 Gunslinging . | . . . Exploded . | . . . Melee . | . . . Uniques/NPCs Destroyed . | . . . Combat | -11 -10 -9 -------- Run | Yrd Mat Mat Hostile Shots Fired 268 | . 51 217 Missed 74 | . 16 58 Hits 194 | . 35 159 Melee 5 | . . 5 Projectile 189 | . 35 154 Critical Strikes 6 | . 1 5 Damage Taken 2101 | . 323 1778 Core 407 | . . 407 Absorbed by Shields . | . . . Core Remaining (%) 100 | 100 100 . Volleys Fired 118 | 19 21 78 Largest 2 | 2 2 2 Hottest 130 | 70 70 130 Shots Fired 234 | 38 42 154 Gun 225 | 38 42 145 Cannon 8 | . . 8 Launcher . | . . . Special 1 | . . 1 Kinetic 126 | 19 21 86 Thermal 108 | 19 21 68 Explosive . | . . . Electromagnetic . | . . . Robot Hit Streak 18 | 8 7 18 Robot Miss Streak 7 | 2 2 7 Penetration Max . | . . . Secondary Targets 3 | . 1 2 Max Gunslinging Chain 1 | . 1 1 Shots Hit Robots 152 | 25 24 103 Core Hits 57 | 9 13 35 Critical Kills . | . . . Critical Parts Destroyed . | . . . Critical Strikes 12 | 2 2 8 Burn 12 | 2 2 8 Melee Attacks 1 | . . 1 Impact . | . . . Slashing . | . . . Piercing . | . . . Sneak Attacks . | . . . Combat Hostiles . | . . . Follow-up Attacks . | . . . Damage Inflicted 2109 | 317 337 1455 Guns 2011 | 317 335 1359 Cannons 90 | . . 90 Explosions . | . . . Melee . | . . . Ramming 8 | . 2 6 Kinetic 1068 | 132 136 800 Thermal 1033 | 185 199 649 Explosive . | . . . Electromagnetic . | . . . Impact . | . . . Slashing . | . . . Piercing . | . . . Highest Corruption . | . . . Average Corruption . | . . . Corruption Purged . | . . . Corruption Blocked . | . . . Overload Shots . | . . . Overflow Damage . | . . . Projectiles . | . . . Explosions . | . . . Melee . | . . . Knockbacks . | . . . Impact . | . . . Kinetic . | . . . Secondary . | . . . Self-Inflicted Damage . | . . . Shots . | . . . Rammed . | . . . Targets Rammed 5 | . 2 3 Kicked 5 | . 2 3 Crushed . | . . . Highest Temperature 323 | 171 81 323 Average Temperature 76 | 85 29 87 Received Heat Transfer 558 | . 84 474 Effects 3 | . . 3 Interference 3 | . . 3 Siege Activations . | . . . Martial Activations . | . . . Shielding Activations . | . . . Robots Disrupted . | . . . Combat Hostiles . | . . . Robots Corrupted . | . . . Combat Hostiles . | . . . Parts Fried . | . . . Impact Corruptions . | . . . Robots Melted . | . . . Combat Hostiles . | . . . Parts Melted 10 | 5 . 5 Heat Transferred 3737 | 703 740 2294 Parts Sabotaged . | . . . Parts Stolen . | . . . Parts Stripped . | . . . Power Chain Reactions . | . . . Alert | -11 -10 -9 ------- Run | Yrd Mat Mat Maximum Alert Level 1 | . . 1 Low Security (%) 92 | 100 100 84 Level 1 7 | . . 15 Level 2 . | . . . Level 3 . | . . . Level 4 . | . . . Level 5 . | . . . High Security . | . . . Max Security . | . . . Peak Influence 239 | 15 75 239 Initial 31 | . 3 31 Average 50 | 4 18 82 Influence Increases 813 | 40 179 594 Destroy 0b10 Robot/C 520 | . 140 380 Destroy 0b10 Robot/NC 55 | 40 5 10 Destroy Leader 124 | . 32 92 Successful Hack 5 | . . 5 Disable Machine 45 | . . 45 Destroy Structure 4 | . 2 2 Lose Combat Pursuer 60 | . . 60 Influence Decreases 613 | 35 109 469 Entered New Map 46 | . 2 44 Time Decay 406 | 35 107 264 Lost Part 161 | . . 161 Squads Dispatched 3 | . 2 1 Investigation 2 | . 2 . Extermination . | . . . Reinforcement 1 | . . 1 Assault . | . . . Garrison . | . . . Intercept . | . . . Searches Triggered . | . . . Construction Impeded . | . . . Haulers Reinforced . | . . . Active Scanning Responses . | . . . Cargo Convoy Interrupts . | . . . Stealth | -11 -10 -9 --------- Run | Yrd Mat Mat Distress Signals 3 | . . 3 Communications Jammed . | . . . Distress Signals . | . . . Times Spotted 50 | . 15 35 Peak Tracking Total 7 | . 6 7 Tactical Retreats 4 | . . 4 Traps | -11 -10 -9 ------- Run | Yrd Mat Mat Traps Triggered 2 | . 2 . Indirectly . | . . . Trap Hack Attempts . | . . . Triggered . | . . . Disarmed . | . . . Reprogrammed . | . . . Reused . | . . . Traps Extracted . | . . . Installed . | . . . Triggered . | . . . Machines | -11 -10 -9 ---------- Run | Yrd Mat Mat Machines Disabled 3 | . . 3 Max in Single Turn 1 | . . 1 Machines Repaired . | . . . Machines Dismantled . | . . . Machines Sabotaged . | . . . Overloaded Fab Kills . | . . . Hacking | -11 -10 -9 --------- Run | Yrd Mat Mat Machines Accessed 4 | . 1 3 Terminals 4 | . 1 3 Fabricators . | . . . Repair Stations . | . . . Recycling Units . | . . . Scanalyzers . | . . . Garrison Access . | . . . Total Hacks 15 | . 2 13 Successful 3 | . . 3 Failed 12 | . 2 10 Catastrophic 1 | . . 1 Database Lockouts . | . . . Manual 10 | . 2 8 Terminals 15 | . 2 13 Fabricators . | . . . Repair Stations . | . . . Recycling Units . | . . . Scanalyzers . | . . . Garrison Access . | . . . Terminal Hacks 1 | . . 1 Terminal Index 1 | . . 1 Fabricator Hacks . | . . . Repair Station Hacks . | . . . Recycling Unit Hacks . | . . . Scanalyzer . | . . . Garrison Access Hacks . | . . . Unauthorized Hacks 2 | . . 2 Terminals 2 | . . 2 Botnet 2 | . . 2 Fabricators . | . . . Repair Stations . | . . . Recycling Units . | . . . Scanalyzers . | . . . Garrison Access . | . . . Data Cores Recovered . | . . . Used . | . . . Hacking Detections 4 | . 1 3 Full Trace Events . | . . . Feedback Events . | . . . Feedback Blocked . | . . . Robot Schematics Acquired . | . . . Robots Built . | . . . Authchips . | . . . Time . | . . . Total Robot Build Rating . | . . . Part Schematics Acquired . | . . . Parts Built . | . . . Authchips . | . . . Time . | . . . Total Part Build Rating . | . . . Part Studies Acquired . | . . . Parts Repaired . | . . . Time . | . . . Parts Recycled . | . . . Recycled Matter . | . . . Retrieved Matter . | . . . Retrieved Components . | . . . Parts Scanalyzed . | . . . Part Schematics Acquired . | . . . Parts Damaged . | . . . Bothacking | -11 -10 -9 ------------ Run | Yrd Mat Mat Used RIF Installer . | . . . Robots Hacked . | . . . Non-combat . | . . . Combat . | . . . Robot Hacks Applied . | . . . Relay Couplers Released . | . . . Fabnet Peak Effective % . | . . . Robots Rewired . | . . . Allies Hacked . | . . . Hacks Repelled . | . . . Allies | -11 -10 -9 -------- Run | Yrd Mat Mat Total Allies . | . . . Largest Group . | . . . Highest-Rated Group . | . . . Highest-Rated Ally . | . . . Total Orders . | . . . Ally Attacks . | . . . Total Damage . | . . . Kills . | . . . Allies Corrupted . | . . . Allies Melted . | . . . Intel | -11 -10 -9 ------- Run | Yrd Mat Mat Active Infowar (turns) 733 | 20 436 277 Sensors 2 | . . 2 Seismic 731 | 20 436 275 Robot Analysis Total . | . . . Derelict Logs Recovered . | . . . Drone Launches . | . . . Drone Recoveries . | . . . Exploration | -11 -10 -9 ------------- Run | Yrd Mat Mat Turns Passed 1178 | 135 436 607 Spaces Moved 430 | 45 196 189 Core 15 | 13 . 2 Treads . | . . . Legs 415 | 32 196 187 Wheels . | . . . Hover . | . . . Flight . | . . . Fastest Speed 50 | 50 120 120 Average Speed 123 | 146 120 120 Slowest Speed 250 | 250 120 200 Overloaded Moves . | . . . Propulsion Burnouts . | . . . Robots Hopped . | . . . Potential Cave-ins . | . . . Cave-ins Triggered . | . . . Exploration Rate (%) 22 | 5 37 25 Regions Visited 2 Branch Regions . Pre-discovered Areas . | . . . Known Exits Taken . | . . . Unknown Exits Taken 2 | 1 1 . Scrap Searched . | . . . Spaces Dug . | . . . Terrain Destroyed . | . . . Melee . | . . . Projectile . | . . . AOE . | . . . Terrain Rammed . | . . . Walls Destroyed . | . . . Machines Disabled . | . . . Actions | -11 -10 -9 --------- Run | Yrd Mat Mat Total 837 | 72 354 411 Wait 233 | . 130 103 Move 428 | 44 195 189 Hop . | . . . Pick Up 11 | 2 6 3 Fast Attach 15 | 7 . 8 Attach 11 | . . 11 Detach 2 | . . 2 Swap 8 | . . 8 Drop 5 | . . 5 Fire 118 | 19 21 78 Melee 1 | . . 1 Ram . | . . . Kick 5 | . 2 3 Crush . | . . . Escape Stasis . | . . . Rewire . | . . . Trap . | . . . Miscellaneous . | . . . Route ------- -11/Scrapyard -10/Materials (discovered 2 exits: *Mat / [*Min]) -9/Materials History --------- Turn | Location | Event 23 | -11/Scrapyard | Discovered new exit (range 15) 136 | -11/Scrapyard | Entered Materials 308 | -10/Materials | Build established: Mutant 386 | -10/Materials | Discovered new exit (range 7) 544 | -10/Materials | Discovered new exit (range 8) 572 | -10/Materials | Entered another Materials area 572 | -9/Materials | Evolved 2 slots: Propulsion x1, Utility x1 1125 | -9/Materials | Core integrity fell below 50% 1160 | -9/Materials | Core integrity fell below 20% 1179 | -9/Materials | Destroyed by G-34 Mercenary with Small Laser Last Messages --------------- 01140_ K-01 Serf collects debris. 01142_ Overheating: System interference. 01142_ Particle Gun temporarily disabled. 01145_ K-01 Serf collects debris. 01149_ S-10 Pest heat short circuits Flight Unit. 01149_ K-01 Serf collects debris. 01149_ Particle Gun destroyed. 01152_ M-13 Machinist repairs S-10 Pest Flight Unit. 01153_ K-01 Serf collects debris. 01155_ S-10 Pest heat spikes uncontrollably. 01156_ Particle Gun destroyed. 01157_ K-01 Serf collects debris. 01159_ Acquired Lgt. Assault Rifle. 01160_ K-01 Serf collects debris. 01164_ Acquired Lgt. Assault Rifle. 01166_ S-10 Pest destroyed. 01167_ K-01 Serf collects debris. 01177_ Lgt. Ion Engine destroyed. Map ----- +----------------------------------------------------+ | ????????????????????????????? #?????????????????? | | ???????????????????????????? ??????????????????? | | ???????????????????????????? ???????????????????? | | ???????????????????????#####+#####???????????????? | | ???????????????????????# #???????????????? | | ???????????????????????# * ##??????????????? | | ???????????????????????# =%! #??????????????? | | ???????????????????????# """ #???????????????? | | ???????????????????????# ] "" #???????????????? | | ???????????????????????#| """ #???????????????? | | ???????????????????????#[ #???????????????? | | ???????????????????????# #???????????????? | | ???????????????????????#+##########??????????????? | | ??????????????##???????# #?# ???????????????? | | ??????????????# ######## ### """""???????????????? | | ??????????????# # # """"""??????????????? | | ??????????????# "" + + """"""??????????????? | | ??????????????# "" # # """"""??????????????? | | ??????????????# "" [[[# # """""???????????????? | | ??????????????#^ "" [ [# # ???????????????? | | ??????????????# #% # [ ??????????????? | | ??????????????# % # #########?????????????? | | ??????###?????# a u#?????????????????????? | | ??????# ????# ! # #?????????????????????? | | ??????# ?############%%g##????????????????????? | | ??????# # ##### @ =###############+#????? | | ??????# # k%s* ???? | | ??????# % ???? | | ??????# # %uo k ???? | | ??????# ??# % ##### ##+####### #???? | | ??????#?????###%###???####### % #????????#??????? | | ??????????????#%#???????????# ""%#???????????????? | | ????????????### ###?????????# "T #???????????????? | | ??? ???????# #?????????# "" #???????????????? | | # ??????# #######???# #???????????????? | | # ??????+ + #???????????????? | | # ??????# #######??## #???????????????? | | # #?????# #?????????# #???????????????? | | # #?????## ##?????????##+###???????????????? | | # #??????# #??????????? ??????????????????? | | # #??????# #??????????? ??????????????????? | | # #??????# #???????????""??????????????????? | | # ##???### ###?????????""??????????????????? | | #???#=% #?????????????????????????????? | | ##### #?????????????????????????????? | | #?????????????????????????????? | | T #?????????????????????????????? | | #?????????????????????????????? | | ##### #?????????????????????????????? | | #???# #?????????????????????????????? | +----------------------------------------------------+ Best States ------------- Heat Dissipation 38 Energy Generation 12 Energy Capacity 265 Matter Stores 300 Matter Capacity 300 Sight Range 16 Terrain Scan Density 10 Armor Coverage 150 Evasion (%) 55 Item Schematics ----------------- None Robot Schematics ------------------ None Fabricated ------------ Nothing Repaired ---------- Nothing Studied --------- None Alien Tech Used ----------------- None Achievements -------------- None Challenges ------------ None Game ------ Seed ServoAntimatterPod Manual? 0 Play Time 00:16:27 Cumulative 27.3 hours Start 2026.01.22 @ 17:21:35 End 2026.01.22 @ 17:33:40 Sessions 1 Manual Loads 0 Difficulty Rogue Special Mode None Game No. 32 Rogue 32 Adventurer 0 Explorer 0 Win Type - Total 0 Types 0/0/0/0/0/0/0/0/0/0 Lore% 24 Gallery% 27 Achievement% 24 Wizard Run 0 Options --------- Layout 1 ASCII 0 Keyboard 1 Movement Numpad Keybinds 0 Fullscreen 1 Font 24/Smallcaps Map View 50x35 Zoom Use 0% Tactical HUD 1 Map Filters NONE Filters NONE Steam 1 RUN: 47cf26ca-0a6b-4a29-aa76-f743261b597b